bitfinex/quotes_BTCUSD_20241116
["timestamp","ask_amount","ask_price","bid_price","bid_amount"]
[1731715833378,0.078,91221.0,91211.0,0.000857]
[1731715833706,0.109626,91220.0,91213.0,0.109632]
[1731715833816,0.078,91221.0,91213.0,0.109632]
[1731715834021,0.078,91221.0,91216.0,0.109629]
[1731715834286,0.078,91221.0,91215.0,0.10963]
[1731715834721,0.078,91221.0,91217.0,0.109628]
[1731715834971,0.00684891,91220.0,91219.0,0.109626]
[1731715835190,0.16440698,91229.0,91228.0,0.109615]
[1731715835668,0.21000698,91239.0,91228.0,0.109615]
[1731715835669,0.0017168,91241.0,91240.0,0.109601]
[1731715838136,0.078,91240.0,91208.0,0.005]
[1731715838356,0.15466255,91239.0,91219.0,0.16440698]
[1731715838576,0.109606,91236.0,91208.0,0.005]
[1731715838795,0.38361398,91238.0,91231.0,0.109611]
[1731715839028,0.21866755,91237.0,91231.0,0.109611]
[1731715839234,0.11882289,91235.0,91211.0,0.000857]
[1731715839480,0.00684745,91235.0,91219.0,0.21925]
[1731715839693,0.00684745,91235.0,91234.0,0.109608]
[1731715840365,0.00684745,91235.0,91234.0,0.32367055]
[1731715840601,0.00684745,91235.0,91234.0,0.58806856]
[1731715840819,0.00684745,91235.0,91234.0,0.55891592]
[1731715841682,0.00684745,91235.0,91234.0,0.59279401]
[1731715842133,0.00684745,91235.0,91234.0,0.59779401]
[1731715842349,0.00684745,91235.0,91234.0,0.119608]
[1731715843032,0.16526408,91245.0,91225.0,0.01]
[1731715843263,0.16526408,91245.0,91240.0,0.109601]
[1731715843919,0.0008571,91245.0,91240.0,0.109601]
[1731715848757,0.0816168,91241.0,91216.0,0.005]
[1731715848970,0.109602,91239.0,91221.0,0.109623]
[1731715849184,0.00058406,91240.0,91220.0,0.16440698]
[1731715849399,0.00058644,91238.0,91221.0,0.219247]
[1731715849643,0.109608,91235.0,91223.0,0.10962]
[1731715849848,0.109609,91233.0,91223.0,0.109621]
[1731715850090,0.109612,91231.0,91213.0,0.1]
[1731715850299,0.00059335,91232.0,91222.0,0.1]
[1731715850535,0.00059573,91230.0,91224.0,0.10962]
[1731715850762,0.00059454,91231.0,91224.0,0.10962]
[1731715851216,0.21866755,91236.0,91223.0,0.109621]
[1731715851446,0.00059573,91230.0,91226.0,0.109617]
[1731715851662,0.00059573,91230.0,91229.0,0.109614]
[1731715851881,0.16440698,91239.0,91234.0,0.109607]
[1731715852092,0.16440698,91239.0,91233.0,0.109608]
[1731715852331,0.16440698,91239.0,91233.0,0.109609]
[1731715852525,0.000586,91238.0,91233.0,0.109609]
[1731715852760,0.000586,91238.0,91234.0,0.109607]
[1731715853258,0.00058719,91237.0,91233.0,0.109608]
[1731715853703,0.00058838,91236.0,91233.0,0.109608]
[1731715854136,0.0816168,91241.0,91233.0,0.109608]
[1731715854357,0.00058957,91235.0,91221.0,0.0008569]
[1731715854570,0.0816168,91241.0,91221.0,0.0008569]
[1731715854571,0.219206,91239.0,91221.0,0.0008569]
[1731715854783,0.16499777,91234.0,91221.0,0.0008569]
[1731715855007,0.109622,91222.0,91221.0,0.0008569]
[1731715855228,0.109616,91227.0,91221.0,0.0008569]
[1731715855442,0.23695453,91233.0,91226.0,0.109617]
[1731715855687,0.109613,91230.0,91221.0,0.0008569]
[1731715855900,0.10906255,91230.0,91210.0,0.219274]
[1731715856107,0.10906255,91230.0,91222.0,0.109622]
[1731715856335,0.10906255,91230.0,91210.0,0.219274]
[1731715856336,0.10906255,91230.0,91220.0,0.109624]
[1731715856545,0.10906255,91230.0,91210.0,0.219274]
[1731715856777,0.10906255,91230.0,91219.0,0.109625]
[1731715856778,0.109617,91227.0,91219.0,0.109625]
[1731715857232,0.00059673,91229.0,91222.0,0.109621]
[1731715857471,0.0006003,91226.0,91222.0,0.109621]
[1731715857687,0.10906255,91230.0,91222.0,0.109621]
[1731715857906,0.109616,91227.0,91222.0,0.109621]
[1731715858115,0.32828955,91230.0,91222.0,0.109621]
[1731715858328,0.00059898,91226.0,91222.0,0.109621]
[1731715858550,0.109616,91228.0,91222.0,0.109621]
[1731715858755,0.00060017,91225.0,91222.0,0.109621]
[1731715858975,0.109616,91228.0,91222.0,0.109621]
[1731715859195,0.00060136,91224.0,91205.0,0.03269702]
[1731715859418,0.109634,91212.0,91204.0,0.16440698]
[1731715859655,0.109634,91212.0,91204.0,0.1]
[1731715861994,0.16440698,91232.0,91211.0,0.000857]
[1731715862212,0.00057186,91224.0,91211.0,0.03356355]
[1731715862462,0.00057186,91224.0,91223.0,0.109621]
[1731715862678,0.16440698,91232.0,91220.0,0.219249]
[1731715862679,0.16440698,91232.0,91229.0,0.109613]
[1731715862905,0.16440698,91232.0,91220.0,0.219249]
[1731715863140,0.00056353,91231.0,91230.0,0.109612]
[1731715863358,0.1273,91233.0,91228.0,0.21923]
[1731715863565,0.1273,91233.0,91232.0,0.10961]
[1731715863993,0.12786115,91233.0,91232.0,0.10961]
[1731715864214,0.1273,91233.0,91232.0,0.10961]
[1731715864464,0.12786115,91233.0,91232.0,0.10961]
[1731715865122,0.00056115,91233.0,91232.0,0.10961]
[1731715865553,0.0017168,91241.0,91225.0,0.219237]
[1731715865792,0.0017168,91241.0,91236.0,0.109605]
[1731715866011,0.00055283,91240.0,91236.0,0.109605]
[1731715867981,0.00055283,91240.0,91238.0,0.109603]
[1731715868214,0.0017168,91241.0,91238.0,0.109603]
[1731715868395,0.00055402,91239.0,91238.0,0.109603]
[1731715868936,0.0017168,91241.0,91238.0,0.109603]
[1731715869144,0.0017168,91241.0,91240.0,0.109601]
[1731715869813,0.0017168,91241.0,91226.0,0.1]
[1731715870041,0.0017168,91241.0,91229.0,0.219228]
[1731715870285,0.0017168,91241.0,91239.0,0.109602]
[1731715870995,0.0017168,91241.0,91226.0,0.1]
[1731715871208,0.0017168,91241.0,91240.0,0.109601]
[1731715872857,0.0017168,91241.0,91221.0,0.1]
[1731715873102,0.0017168,91241.0,91226.0,0.1]
[1731715873353,0.0017168,91241.0,91237.0,0.109603]
[1731715873585,0.0017168,91241.0,91213.0,0.005]
[1731715873586,0.023,91238.0,91215.0,0.09815987]
[1731715873812,0.0761,91230.0,91211.0,0.16526398]
[1731715874073,0.10906255,91229.0,91211.0,0.16526398]
[1731715874296,0.11734648,91229.0,91212.0,0.219269]
[1731715874517,0.16440698,91228.0,91214.0,0.219264]
[1731715874728,0.10906255,91227.0,91214.0,0.219264]
[1731715874954,0.10963145,91227.0,91216.0,0.109629]
[1731715875199,0.10963145,91227.0,91211.0,0.220128]
[1731715875200,0.10963145,91227.0,91213.0,0.109632]
[1731715875441,0.10963145,91227.0,91213.0,0.219266]
[1731715875664,0.10963145,91227.0,91218.0,0.109627]
[1731715876173,0.10963145,91227.0,91213.0,0.219266]
[1731715876392,0.10963145,91227.0,91222.0,0.109622]
[1731715876626,0.10963145,91227.0,91216.0,0.219259]
[1731715876892,0.10963145,91227.0,91218.0,0.109626]
[1731715877099,0.10963145,91227.0,91216.0,0.109629]
[1731715877560,0.10963145,91227.0,91211.0,0.000857]
[1731715877561,0.10963145,91227.0,91222.0,0.109622]
[1731715877785,0.10963145,91227.0,91211.0,0.000857]
[1731715878001,0.10963145,91227.0,91213.0,0.219266]
[1731715878217,0.10963145,91227.0,91214.0,0.219264]
[1731715878469,0.10963145,91227.0,91211.0,0.000857]
[1731715878470,0.10963145,91227.0,91217.0,0.109628]
[1731715878693,0.10963145,91227.0,91220.0,0.109623]
[1731715878910,0.10963145,91227.0,91212.0,0.328903]
[1731715879139,0.10963145,91227.0,91211.0,0.000857]
[1731715879140,0.023,91225.0,91211.0,0.000857]
[1731715879356,0.109623,91222.0,91211.0,0.000857]
[1731715879594,0.11678291,91221.0,91211.0,0.000857]
[1731715879809,0.00772036,91220.0,91211.0,0.000857]
[1731715880046,0.11678291,91219.0,91211.0,0.000857]
[1731715880283,0.00772036,91218.0,91211.0,0.000857]
[1731715880519,0.10906255,91217.0,91211.0,0.000857]
[1731715880733,0.10964319,91217.0,91211.0,0.000857]
[1731715880981,0.21927219,91217.0,91211.0,0.000857]
[1731715881218,0.10964319,91217.0,91211.0,0.000857]
[1731715882522,0.10964319,91217.0,91211.0,0.110491]
[1731715882740,0.10964319,91217.0,91211.0,0.000857]
[1731715884119,0.0773,91216.0,91211.0,0.000857]
[1731715884338,0.109634,91212.0,91211.0,0.000857]
[1731715884560,0.10906255,91212.0,91211.0,0.000857]
[1731715884784,0.10964815,91212.0,91211.0,0.000857]
[1731715885412,0.10964815,91212.0,91211.0,0.110492]
[1731715886266,0.10964815,91212.0,91211.0,0.000857]
[1731715887307,0.10964815,91212.0,91211.0,0.110492]
[1731715887517,0.10964815,91212.0,91211.0,0.000857]
[1731715887726,0.10906255,91212.0,91211.0,0.110492]
[1731715887960,0.10906255,91212.0,91211.0,0.000857]
[1731715888207,0.1096481,91212.0,91211.0,0.000857]
[1731715888448,0.2192821,91212.0,91211.0,0.000857]
[1731715889341,0.21972034,91212.0,91211.0,0.000857]
[1731715889773,0.30172034,91212.0,91211.0,0.000857]
[1731715890008,0.30943289,91212.0,91211.0,0.000857]
[1731715890222,0.28643289,91212.0,91211.0,0.000857]
[1731715891594,0.27872034,91212.0,91211.0,0.000857]
[1731715896240,0.30172034,91212.0,91211.0,0.000857]
[1731715896425,0.38672829,91212.0,91211.0,0.000857]
[1731715896653,0.37902034,91212.0,91211.0,0.000857]
[1731715896904,0.37970105,91212.0,91211.0,0.000857]
[1731715897342,0.387409,91212.0,91211.0,0.000857]
[1731715897576,0.37970105,91212.0,91211.0,0.000857]
[1731715898098,0.2376363,91212.0,91211.0,0.000857]
[1731715898319,0.23706689,91212.0,91211.0,0.000857]
[1731715898544,0.18806689,91212.0,91211.0,0.000857]
[1731715898994,0.19004989,91212.0,91211.0,0.000857]
[1731715899669,0.19690008,91212.0,91211.0,0.000857]
[1731715900982,0.30653408,91212.0,91211.0,0.000857]
[1731715901187,0.22923408,91212.0,91211.0,0.000857]
[1731715901404,0.12730803,91212.0,91211.0,0.000857]
[1731715902036,0.23010196,91212.0,91211.0,0.000857]
[1731715902273,0.12731819,91212.0,91211.0,0.110492]
[1731715902488,0.12731819,91212.0,91211.0,0.000857]
[1731715902702,0.12797097,91212.0,91211.0,0.000857]
[1731715903423,0.01890842,91212.0,91211.0,0.110492]
[1731715903649,0.01119035,91212.0,91211.0,0.110492]
[1731715903871,0.00685023,91212.0,91211.0,0.110492]
[1731715905479,0.10906255,91212.0,91211.0,0.110492]
[1731715905711,0.23327668,91212.0,91211.0,0.000857]
[1731715905922,0.23327673,91212.0,91211.0,0.000857]
[1731715906132,0.23701525,91212.0,91211.0,0.000857]
[1731715906343,0.23930298,91212.0,91211.0,0.000857]
[1731715907015,0.12966898,91212.0,91211.0,0.000857]
[1731715907438,0.12966914,91212.0,91211.0,0.000857]
[1731715908527,0.23930314,91212.0,91211.0,0.000857]
[1731715909986,0.25167932,91212.0,91211.0,0.000857]
[1731715911768,0.23930314,91212.0,91211.0,0.000857]
[1731715911993,0.25167992,91212.0,91211.0,0.000857]
[1731715912686,0.25168549,91212.0,91211.0,0.000857]
[1731715915234,0.25168549,91212.0,91197.0,0.109652]
[1731715915235,0.109645,91204.0,91197.0,0.109652]
[1731715915449,0.14205146,91212.0,91197.0,0.109652]
[1731715915450,0.01458576,91203.0,91197.0,0.219305]
[1731715915669,0.01458576,91203.0,91189.0,0.005]
[1731715915670,0.01458576,91202.0,91189.0,0.005]
[1731715915896,0.01458576,91202.0,91183.0,0.396637]
[1731715915897,0.2261452,91201.0,91194.0,0.13346711]
[1731715916108,0.10965,91199.0,91194.0,0.1]
[1731715916567,0.109649,91200.0,91194.0,0.209655]
[1731715916806,0.11591285,91199.0,91183.0,0.03309319]
[1731715917066,0.01471245,91198.0,91183.0,0.25243019]
[1731715917305,0.11250865,91199.0,91183.0,0.25243019]
[1731715917306,0.123775,91197.0,91185.0,0.109666]
[1731715917517,0.109661,91190.0,91185.0,0.109667]
[1731715917737,0.00337945,91189.0,91185.0,0.109667]
[1731715918408,0.109668,91184.0,91179.0,0.03389066]
[1731715918639,0.10967,91183.0,91179.0,0.03389066]
[1731715918856,0.10967,91183.0,91178.0,0.109674]
[1731715918857,0.11188078,91183.0,91178.0,0.109674]
[1731715919076,0.00221078,91183.0,91175.0,0.263203]
[1731715919300,0.00221078,91183.0,91180.0,0.109672]
[1731715919519,0.16440698,91186.0,91175.0,0.29565425]
[1731715919779,0.16440698,91186.0,91181.0,0.109671]
[1731715920013,0.00221559,91185.0,91181.0,0.109671]
[1731715920247,0.00221559,91185.0,91175.0,0.29565425]
[1731715920497,0.109672,91181.0,91176.0,0.109677]
[1731715920729,0.00222039,91180.0,91176.0,0.109677]
[1731715920958,0.11189339,91180.0,91175.0,0.043847]
[1731715921181,0.109677,91176.0,91175.0,0.043847]
[1731715921413,0.109677,91176.0,91171.0,0.03258692]
[1731715921414,0.109682,91172.0,91171.0,0.03258692]
[1731715921635,0.2255966,91172.0,91171.0,0.03258692]
[1731715921860,0.109691,91165.0,91160.0,0.109696]
[1731715922117,0.219372,91169.0,91162.0,0.04386]
[1731715922380,0.10969,91166.0,91162.0,0.04386]
[1731715922617,0.32843455,91169.0,91153.0,0.01905565]
[1731715922618,0.109703,91155.0,91153.0,0.01905565]
[1731715922832,0.219401,91157.0,91153.0,0.01905565]
[1731715923074,0.219401,91158.0,91153.0,0.01905565]
[1731715923075,0.00217364,91154.0,91153.0,0.01905565]
[1731715923311,0.109704,91154.0,91153.0,0.01905565]
[1731715923548,0.11187764,91154.0,91153.0,0.01905565]
[1731715923767,0.00217364,91154.0,91153.0,0.15961765]
[1731715923995,0.00217364,91154.0,91153.0,0.24046145]
[1731715924213,0.00685399,91171.0,91169.0,0.109686]
[1731715924427,0.10906255,91170.0,91169.0,0.109686]
[1731715924659,0.11404667,91170.0,91169.0,0.109686]
[1731715925085,0.11404667,91170.0,91156.0,0.36889546]
[1731715925304,0.11404667,91170.0,91169.0,0.109686]
[1731715925525,0.00498412,91170.0,91169.0,0.109686]
[1731715925741,0.109661,91190.0,91163.0,0.14949346]
[1731715925742,0.16440698,91175.0,91174.0,0.10968]
[1731715925983,0.16944066,91175.0,91174.0,0.10968]
[1731715926477,0.00503368,91175.0,91174.0,0.10968]
[1731715926718,0.00503368,91175.0,91174.0,0.20968]
[1731715926958,0.00503368,91175.0,91170.0,0.14949346]
[1731715926959,0.16440698,91184.0,91175.0,0.1792]
[1731715927202,0.16440698,91198.0,91197.0,0.109652]
[1731715927911,0.109639,91209.0,91193.0,0.14949346]
[1731715928135,0.10906255,91208.0,91194.0,0.109656]
[1731715928370,0.10906255,91208.0,91195.0,0.21931]
[1731715928611,0.10906255,91208.0,91203.0,0.109644]
[1731715928834,0.10906255,91208.0,91186.0,0.1]
[1731715929069,0.16440698,91200.0,91181.0,0.09823591]
[1731715929325,0.16440698,91200.0,91172.0,0.24558977]
[1731715929326,0.109676,91178.0,91174.0,0.09823591]
[1731715929559,0.0769,91195.0,91171.0,0.16440698]
[1731715929560,0.109682,91172.0,91171.0,0.16440698]
[1731715929923,0.109681,91173.0,91168.0,0.09823591]
[1731715930036,0.109681,91173.0,91170.0,0.09823591]
[1731715930271,0.0484,91185.0,91168.0,0.14735386]
[1731715930272,0.10906255,91193.0,91168.0,0.14949346]
[1731715930496,0.00213895,91172.0,91171.0,0.109684]
[1731715930714,0.16440698,91181.0,91180.0,0.109673]
[1731715930952,0.16659251,91181.0,91180.0,0.109673]
[1731715931189,0.00218553,91181.0,91180.0,0.109673]
[1731715931613,0.10966,91191.0,91184.0,0.109667]
[1731715931832,0.16440698,91188.0,91184.0,0.109667]
[1731715932061,0.10906255,91188.0,91184.0,0.109667]
[1731715932284,0.10906255,91188.0,91179.0,0.219348]
[1731715932285,0.10906255,91188.0,91182.0,0.10967]
[1731715932496,0.10906255,91188.0,91179.0,0.219348]
[1731715932497,0.21872655,91188.0,91181.0,0.109671]
[1731715932715,0.21872655,91188.0,91179.0,0.219348]
[1731715932922,0.00454771,91190.0,91174.0,0.21936]
[1731715932923,0.10906255,91187.0,91174.0,0.21936]
[1731715933142,0.109668,91185.0,91179.0,0.109673]
[1731715933354,0.10906255,91185.0,91179.0,0.109673]
[1731715933580,0.10906255,91185.0,91174.0,0.21936]
[1731715933808,0.21872955,91185.0,91180.0,0.109673]
[1731715934020,0.00219275,91184.0,91169.0,0.438744]
[1731715934263,0.00219275,91184.0,91183.0,0.109669]
[1731715934481,0.109657,91194.0,91184.0,0.219335]
[1731715934712,0.10967,91182.0,91172.0,0.219364]
[1731715934971,0.10967,91182.0,91176.0,0.109677]
[1731715935179,0.10967,91182.0,91174.0,0.21936]
[1731715935409,0.10906255,91193.0,91172.0,0.219364]
[1731715935410,0.16440698,91186.0,91172.0,0.219364]
[1731715935630,0.16440698,91186.0,91169.0,0.109686]
[1731715935631,0.10906255,91185.0,91169.0,0.109686]
[1731715935842,0.10906255,91185.0,91180.0,0.109673]
[1731715936063,0.21872955,91185.0,91180.0,0.109673]
[1731715936583,0.10906255,91185.0,91167.0,0.0008569]
[1731715936827,0.109687,91168.0,91167.0,0.0008569]
[1731715937079,0.21874955,91168.0,91167.0,0.0008569]
[1731715937557,0.22095688,91168.0,91167.0,0.0008569]
[1731715937798,0.22780886,91168.0,91167.0,0.0008569]
[1731715938273,0.109704,91154.0,91153.0,0.0016438]
[1731715938507,0.29566655,91154.0,91153.0,0.0016438]
[1731715938727,0.34624019,91154.0,91153.0,0.0016438]
[1731715940496,0.37924019,91154.0,91153.0,0.0016438]
[1731715940722,0.47924019,91154.0,91153.0,0.0016438]
[1731715940932,0.49590746,91154.0,91153.0,0.0016438]
[1731715941149,0.012,91151.0,91150.0,0.0308576]
[1731715941381,0.36279195,91151.0,91150.0,0.0308576]
[1731715941599,0.43969195,91151.0,91150.0,0.0308576]
[1731715942235,0.43283697,91151.0,91150.0,0.0308576]
[1731715942452,0.219445,91139.0,91127.0,0.16440698]
[1731715942698,0.109741,91124.0,91116.0,0.10975]
[1731715942912,0.11119767,91138.0,91116.0,0.2195]
[1731715943128,0.109741,91123.0,91115.0,0.1106078]
[1731715943340,0.10975,91117.0,91115.0,0.0008578]
[1731715943794,0.11362825,91122.0,91115.0,0.0008578]
[1731715943795,0.21881255,91116.0,91115.0,0.0008578]
[1731715944704,0.27602202,91116.0,91115.0,0.0008578]
[1731715944924,0.26721255,91116.0,91115.0,0.0008578]
[1731715945143,0.26929469,91116.0,91115.0,0.0008578]
[1731715945404,0.29729469,91116.0,91115.0,0.0008578]
[1731715945614,0.30229469,91116.0,91115.0,0.0008578]
[1731715945829,0.40874503,91116.0,91115.0,0.0008578]
[1731715946044,0.37709469,91116.0,91115.0,0.0008578]
[1731715946260,0.34909469,91116.0,91115.0,0.0008578]
[1731715947121,0.35155591,91116.0,91115.0,0.0008578]
[1731715950488,0.38455591,91116.0,91115.0,0.0008578]
[1731715950720,0.48655591,91116.0,91115.0,0.0008578]
[1731715950948,0.4914145,91116.0,91115.0,0.0008578]
[1731715952369,0.48455591,91116.0,91115.0,0.0008578]
[1731715952811,0.49141438,91116.0,91115.0,0.0008578]
[1731715953262,0.48455591,91116.0,91115.0,0.0008578]
[1731715953687,0.45655591,91116.0,91115.0,0.0008578]
[1731715953913,0.45655591,91116.0,91087.0,0.0008572]
[1731715953914,0.005,91108.0,91087.0,0.0008572]
[1731715954177,0.109783,91089.0,91087.0,0.0008572]
[1731715954388,0.109783,91088.0,91087.0,0.0008572]
[1731715954622,0.0451,91095.0,91087.0,0.0008572]
[1731715954832,0.10978,91091.0,91087.0,0.0008572]
[1731715955066,0.10906255,91090.0,91087.0,0.1106412]
[1731715955285,0.10906255,91090.0,91089.0,0.109782]
[1731715955286,0.00240461,91090.0,91089.0,0.109782]
[1731715955571,0.00240461,91090.0,91089.0,0.47833801]
[1731715955788,0.16440698,91107.0,91106.0,0.109762]
[1731715956010,0.16440698,91107.0,91106.0,0.25925546]
[1731715956463,0.16440698,91117.0,91116.0,0.10975]
[1731715957147,0.109734,91129.0,91106.0,0.14949346]
[1731715957368,0.21879855,91128.0,91122.0,0.109742]
[1731715957584,0.16440698,91121.0,91098.0,0.14949346]
[1731715957799,0.109751,91115.0,91107.0,0.10976]
[1731715958029,0.109755,91112.0,91104.0,0.109764]
[1731715958244,0.10906255,91114.0,91104.0,0.109764]
[1731715958245,0.10906255,91111.0,91104.0,0.109764]
[1731715958492,0.11151777,91111.0,91102.0,0.219534]
[1731715958708,0.11151777,91111.0,91094.0,0.219551]
[1731715958935,0.11151777,91111.0,91108.0,0.109759]
[1731715959155,0.11151777,91111.0,91102.0,0.219532]
[1731715959468,0.11151777,91111.0,91096.0,0.1]
[1731715959682,0.00245522,91111.0,91110.0,0.109757]
[1731715960092,0.16440698,91116.0,91102.0,0.219534]
[1731715960310,0.16440698,91116.0,91112.0,0.109754]
[1731715960513,0.00475535,91115.0,91112.0,0.109754]
[1731715961164,0.00475535,91115.0,91114.0,0.109752]
[1731715961378,0.0017158,91118.0,91110.0,0.219514]
[1731715961584,0.0017158,91118.0,91117.0,0.109749]
[1731715962520,0.0017158,91118.0,91094.0,0.01]
[1731715962754,0.2195,91116.0,91108.0,0.109759]
[1731715962975,0.27346953,91115.0,91094.0,0.219552]
[1731715963196,0.109766,91103.0,91095.0,0.109774]
[1731715963411,0.109767,91102.0,91096.0,0.109773]
[1731715963622,0.109767,91102.0,91089.0,0.0008579]
[1731715963623,0.21951,91112.0,91100.0,0.109769]
[1731715963832,0.109761,91107.0,91100.0,0.109769]
[1731715964039,0.21882355,91107.0,91100.0,0.109769]
[1731715964902,0.109762,91106.0,91099.0,0.109769]
[1731715965098,0.11220517,91106.0,91099.0,0.109769]
[1731715965316,0.11220517,91106.0,91094.0,0.439106]
[1731715965531,0.00685765,91105.0,91099.0,0.10977]
[1731715965737,0.11662165,91104.0,91099.0,0.10977]
[1731715965968,0.00685765,91103.0,91099.0,0.10977]
[1731715966186,0.00929117,91102.0,91099.0,0.10977]
[1731715966630,0.00685764,91101.0,91099.0,0.10977]
[1731715966833,0.00685764,91100.0,91099.0,0.10977]
[1731715967088,0.00928635,91100.0,91099.0,0.10977]
[1731715967329,0.00928635,91100.0,91089.0,0.0008579]
[1731715967330,0.109781,91090.0,91089.0,0.0008579]
[1731715967597,0.22570119,91090.0,91089.0,0.0008579]
[1731715967798,0.23592079,91090.0,91089.0,0.0008579]
[1731715968232,0.12685824,91090.0,91089.0,0.0008579]
[1731715968452,0.01707724,91090.0,91089.0,0.0008579]
[1731715968668,0.12685824,91090.0,91089.0,0.0008579]
[1731715968878,0.01707724,91090.0,91089.0,0.0008579]
[1731715969086,0.00926225,91090.0,91089.0,0.0008579]
[1731715969306,0.00685764,91090.0,91089.0,0.0008579]
[1731715969537,0.00685764,91090.0,91089.0,0.1106399]
[1731715969758,0.01152257,91090.0,91089.0,0.1106399]
[1731715969988,0.00685764,91090.0,91089.0,0.1106399]
[1731715970186,0.38394198,91102.0,91089.0,0.1106399]
[1731715970187,0.109774,91096.0,91089.0,0.1106399]
[1731715970395,0.12131662,91095.0,91089.0,0.1106399]
[1731715970622,0.11663543,91094.0,91089.0,0.0008579]
[1731715970883,0.00685843,91093.0,91089.0,0.0008579]
[1731715971096,0.00468319,91095.0,91089.0,0.0008579]
[1731715971097,0.00685843,91092.0,91090.0,0.109781]
[1731715971321,0.00468319,91095.0,91093.0,0.109777]
[1731715971536,0.16440698,91099.0,91093.0,0.109777]
[1731715971537,0.00685814,91094.0,91093.0,0.109777]
[1731715971750,0.01153768,91094.0,91093.0,0.109777]
[1731715973297,0.109777,91093.0,91089.0,0.0008579]
[1731715973536,0.00685814,91092.0,91089.0,0.0008579]
[1731715973769,0.00685814,91091.0,91089.0,0.0008579]
[1731715973984,0.00685814,91090.0,91089.0,0.1106399]
[1731715974905,0.00685814,91090.0,91089.0,0.0008579]
[1731715975341,0.00911846,91090.0,91089.0,0.0008579]
[1731715976434,0.01150604,91090.0,91089.0,0.1106399]
[1731715976837,0.00924572,91090.0,91089.0,0.1106399]
[1731715977043,0.01149726,91090.0,91089.0,0.1106399]
[1731715977701,0.00685814,91090.0,91089.0,0.1106399]
[1731715978713,0.16440698,91098.0,91096.0,0.109773]
[1731715978917,0.00685789,91097.0,91096.0,0.109773]
[1731715979570,0.00685789,91097.0,91090.0,0.219561]
[1731715979768,0.00685789,91097.0,91093.0,0.109777]
[1731715979891,0.0092049,91096.0,91093.0,0.109777]
[1731715980103,0.00685789,91095.0,91093.0,0.109777]
[1731715980331,0.109771,91099.0,91091.0,0.21956]
[1731715980332,0.00685789,91094.0,91091.0,0.21956]
[1731715980535,0.0092049,91093.0,91092.0,0.109779]
[1731715981859,0.00685789,91093.0,91092.0,0.109779]
[1731715983607,0.00685789,91093.0,91091.0,0.109779]
[1731715984026,0.00685789,91092.0,91091.0,0.10978]
[1731715984451,0.01169633,91092.0,91091.0,0.10978]
[1731715984904,0.00685789,91092.0,91091.0,0.10978]
[1731715985338,0.00685789,91092.0,91089.0,0.0008579]
[1731715985573,0.109773,91097.0,91091.0,0.10978]
[1731715985811,0.109781,91090.0,91089.0,0.0008579]
[1731715986275,0.31373568,91090.0,91089.0,0.0008579]
[1731715986519,0.36033568,91090.0,91089.0,0.0008579]
[1731715987907,0.35250155,91090.0,91089.0,0.0008579]
[1731715990397,0.37550155,91090.0,91089.0,0.0008579]
[1731715991043,0.38050155,91090.0,91089.0,0.0008579]
[1731715991264,0.53499501,91090.0,91089.0,0.0008579]
[1731715991489,0.38550155,91090.0,91089.0,0.0008579]
[1731715991720,0.37550155,91090.0,91089.0,0.0008579]
[1731715992162,0.37713115,91090.0,91089.0,0.0008579]
[1731715992831,0.37713216,91090.0,91089.0,0.0008579]
[1731715993059,0.35514063,91090.0,91089.0,0.0008579]
[1731715993290,0.35413216,91090.0,91089.0,0.0008579]
[1731715994197,0.35514063,91090.0,91089.0,0.0008579]
[1731715994432,0.00949708,91090.0,91089.0,0.0008579]
[1731715994640,0.00949708,91090.0,91089.0,0.1106399]
[1731715994864,0.00263908,91090.0,91089.0,0.1106399]
[1731715995111,0.21210698,91105.0,91089.0,0.1106399]
[1731715995112,0.109769,91101.0,91091.0,0.21956]
[1731715995332,0.00685831,91100.0,91096.0,0.109773]
[1731715995572,0.11138941,91100.0,91094.0,0.109776]
[1731715995788,0.109772,91098.0,91093.0,0.109777]
[1731715996003,0.11238727,91097.0,91089.0,0.0008579]
[1731715996224,0.00162074,91097.0,91089.0,0.0008579]
[1731715996436,0.109774,91096.0,91089.0,0.0008579]
[1731715996687,0.109774,91096.0,91091.0,0.109779]
[1731715996904,0.109772,91098.0,91092.0,0.109779]
[1731715997132,0.00261509,91095.0,91092.0,0.109779]
[1731715997348,0.109773,91097.0,91092.0,0.109779]
[1731715997558,0.00261509,91094.0,91092.0,0.109779]
[1731715997792,0.109773,91097.0,91092.0,0.109779]
[1731715997997,0.109771,91098.0,91092.0,0.109779]
[1731715998209,0.00261509,91097.0,91089.0,0.0008579]
[1731715998420,0.11238809,91097.0,91089.0,0.1106389]
[1731715998637,0.109778,91093.0,91089.0,0.0008579]
[1731715998850,0.109781,91090.0,91089.0,0.0008579]
[1731715999267,0.11239733,91090.0,91089.0,0.0008579]
[1731715999486,0.00261633,91090.0,91089.0,0.0008579]
[1731715999899,0.10978,91091.0,91089.0,0.0008579]
[1731716000108,0.11239857,91090.0,91089.0,0.0008579]
[1731716000344,0.22146112,91090.0,91089.0,0.0008579]
[1731716000555,0.30326112,91090.0,91089.0,0.0008579]
[1731716000979,0.31012027,91090.0,91089.0,0.0008579]
[1731716001876,0.4491838,91090.0,91089.0,0.0008579]
[1731716002090,0.4821838,91090.0,91089.0,0.0008579]
[1731716002304,0.39766232,91090.0,91089.0,0.0008579]
[1731716002721,0.39867122,91090.0,91089.0,0.0008579]
[1731716003412,0.39867122,91090.0,91087.0,0.0008572]
[1731716003413,0.144783,91088.0,91087.0,0.0008572]
[1731716003624,0.29428246,91083.0,91070.0,0.0008573]
[1731716003833,0.54283279,91083.0,91070.0,0.0008573]
[1731716004049,0.55729849,91083.0,91070.0,0.0008573]
[1731716004298,0.75532352,91083.0,91070.0,0.0008573]
[1731716004514,0.76636104,91083.0,91070.0,0.0008573]
[1731716005360,0.267604,91071.0,91070.0,0.0008573]
[1731716005595,0.39329623,91071.0,91070.0,0.0008573]
[1731716006013,0.39328169,91071.0,91070.0,0.0008573]
[1731716006223,0.40345446,91071.0,91070.0,0.0008573]
[1731716007156,0.39564037,91071.0,91070.0,0.0008573]
[1731716008689,0.38782893,91071.0,91070.0,0.0008573]
[1731716008925,0.39563599,91071.0,91070.0,0.0008573]
[1731716010061,0.54712945,91071.0,91070.0,0.0008573]
[1731716011438,0.64712945,91071.0,91070.0,0.0008573]
[1731716012547,0.64956613,91071.0,91070.0,0.0008573]
[1731716012764,0.64712945,91071.0,91070.0,0.0043325]